fUST/lending_fUST_20250404
["ID","MTS","AMOUNT","RATE_DAILY","PERIOD"]
[357083870,1743702642286,-796.3,0.00015216,2]
[357083871,1743702642295,-500.0,0.00015216,2]
[357083872,1743702642307,-1029.85,0.00015216,2]
[357083873,1743702642318,-596.97,0.00015216,2]
[357083874,1743702642327,-995.4,0.00015216,2]
[357083875,1743702642337,-297.63832632,0.00015216,2]
[357083876,1743702642347,-4081.38,0.00015216,2]
[357083877,1743702642357,-575.56,0.00015216,2]
[357083878,1743702642366,-708.75,0.00015216,2]
[357083879,1743702642376,-500.0,0.00015216,2]
[357083880,1743702642386,-646.83,0.00015216,2]
[357083881,1743702642396,-288.07449933,0.00015217,2]
[357083882,1743702642407,-966.32,0.00015217,2]
[357083883,1743702642416,-500.0,0.00015217,2]
[357083884,1743702642426,-500.0,0.00015217,2]
[357083885,1743702642437,-500.0,0.00015217,2]
[357083886,1743702642446,-500.0,0.00015217,2]
[357083887,1743702642456,-603.7,0.00015217,2]
[357083888,1743702642467,-1006.72532152,0.00015217,2]
[357083889,1743702642481,-85.20467848,0.00015217,2]
[357083890,1743702642490,-931.43,0.00015217,2]
[357083891,1743702642500,-689.73,0.00015217,2]
[357083892,1743702642510,-500.0,0.00015217,2]
[357083893,1743702642520,-678.32,0.00015217,2]
[357083894,1743702642529,-151.0,0.00015217,2]
[357083895,1743702642538,-151.0,0.00015217,2]
[357083896,1743702642548,-151.0,0.00015217,2]
[357083897,1743702642558,-198.0557,0.00015217,2]
[357083898,1743702642567,-198.0557,0.00015217,2]
[357083899,1743702642576,-262.846227,0.00015217,2]
[357083900,1743702642586,-151.0,0.00015217,2]
[357083901,1743702642595,-151.0,0.00015217,2]
[357083902,1743702642605,-151.0,0.00015218,2]
[357083903,1743702642615,-161.95283,0.00015219,2]
[357083904,1743702642624,-161.95283,0.00015219,2]
[357083905,1743702642633,-151.0,0.00015219,2]
[357083906,1743702642642,-151.0,0.00015219,2]
[357083907,1743702642652,-161.3740615,0.00015232,2]
[357083908,1743702642661,-500.0,0.00015454,2]
[357083909,1743702642671,-500.0,0.00015454,2]
[357083910,1743702642680,-500.0,0.00015454,2]
[357083911,1743702642689,-500.0,0.00015454,2]
[357083912,1743702642699,-500.0,0.00015454,2]
[357083913,1743702642708,-500.0,0.00015454,2]
[357083914,1743702642718,-500.0,0.00015461,2]
[357083915,1743702642726,-500.0,0.00015461,2]
[357083916,1743702642736,-500.0,0.00015461,2]
[357083917,1743702642745,-490.00713953,0.00015461,2]
[357083929,1743702643730,-151.0,0.00015215,2]
[357083930,1743702643740,-9.99286047,0.00015461,2]
[357083931,1743702643749,-500.0,0.00015461,2]
[357083932,1743702643759,-500.0,0.00015461,2]
[357083933,1743702643768,-500.0,0.00015461,2]
[357083934,1743702643777,-375.05775775,0.00015461,2]
[357083936,1743702643787,-506.87062219,0.00015461,2]
[357083937,1743702643796,-261.4620889,0.00015461,2]
[357083938,1743702643805,-386.08941514,0.00015461,2]
[357083939,1743702643814,-420.0,0.00015465,2]
[357083940,1743702643824,-151.0,0.00015469,2]
[357083941,1743702643833,-151.0,0.00015469,2]
[357083942,1743702643843,-151.0,0.00015469,2]
[357083943,1743702643857,-500.0,0.00015469,2]
[357083944,1743702643866,-500.0,0.00015469,2]
[357083945,1743702643875,-500.0,0.00015469,2]
[357083946,1743702643885,-500.0,0.0001548,2]
[357083947,1743702643895,-560.38,0.00015489,2]
[357083948,1743702643904,-890.05,0.00015489,2]
[357083949,1743702643914,-638.54,0.00015489,2]
[357083950,1743702643923,-500.0,0.00015489,2]
[357083951,1743702643933,-500.0,0.00015489,2]
[357083952,1743702643942,-649.32,0.00015489,2]
[357083953,1743702643952,-917.19636451,0.00015489,2]
[357085596,1743702819924,655.5,0.00010959,2]
[357086170,1743702841378,1242.8,0.00014,2]
[357086175,1743703406839,180.0,0.00025,100]
[357086176,1743703569196,150.0,0.00025,30]
[357086231,1743703831785,-300.0,0.00014117,2]
[357086232,1743703831795,-500.0,0.00014118,2]
[357086234,1743703831805,-500.0,0.00014118,2]
[357086235,1743703831815,-500.0,0.00014118,2]
[357086236,1743703831827,-500.0,0.00014118,2]
[357086237,1743703831837,-500.0,0.00014118,2]
[357086238,1743703831847,-500.0,0.00014118,2]
[357086239,1743703831856,-500.0,0.00014118,2]
[357086240,1743703831865,-145.67149708,0.00014118,2]
[357086271,1743703837657,-266.5352496,0.00014118,2]
[357086273,1743703837668,-500.0,0.00014118,2]
[357086274,1743703837679,-697.49343877,0.00014118,2]
[357086275,1743703837709,-67.50656123,0.00014118,2]
[357086276,1743703837724,-252.49343877,0.00014118,2]
[357086277,1743703837761,-1197.98656123,0.00014118,2]
[357086278,1743703837773,-500.0,0.00014118,2]
[357086279,1743703837785,-500.0,0.00014118,2]
[357086280,1743703837795,-667.54,0.00014118,2]
[357086281,1743703837805,-500.0,0.00014118,2]
[357086282,1743703837817,-500.0,0.00014118,2]
[357086283,1743703837828,-630.4,0.00014118,2]
[357086284,1743703837839,-500.0,0.00014118,2]
[357086286,1743703837850,-815.3,0.00014118,2]
[357086287,1743703837861,-1085.52,0.00014118,2]
[357086288,1743703837872,-500.0,0.00014118,2]
[357086289,1743703837883,-500.0,0.00014118,2]
[357086290,1743703837895,-1406.22,0.00014118,2]
[357086291,1743703837906,-504.44106493,0.00014118,2]
[357086292,1743703837917,-500.0,0.00014118,2]
[357086293,1743703837929,-500.0,0.00014118,2]
[357086294,1743703837940,-500.0,0.00014118,2]
[357086295,1743703837951,-2274.22575132,0.00014118,2]
[357086430,1743703842823,-552.97424868,0.00014118,2]
[357086431,1743703842835,-788.03,0.00014118,2]
[357086432,1743703842848,-500.0,0.00014118,2]
[357086433,1743703842859,-500.0,0.00014118,2]
[357086434,1743703842870,-500.0,0.00014118,2]
[357086435,1743703842880,-500.0,0.00014118,2]
[357086436,1743703842891,-500.0,0.00014118,2]
[357086437,1743703842903,-312.77199116,0.00014118,2]
[357086438,1743703842915,-606.9,0.00014118,2]
[357086439,1743703842927,-500.0,0.00014118,2]
[357086440,1743703842938,-500.0,0.00014118,2]
[357086441,1743703842951,-500.0,0.00014118,2]
[357086442,1743703842961,-500.0,0.00014118,2]
[357086443,1743703842971,-595.01,0.00014118,2]
[357086444,1743703842981,-258.81460425,0.00014118,2]
[357086445,1743703842992,-500.0,0.00014118,2]
[357086446,1743703843003,-500.0,0.00014118,2]
[357086447,1743703843013,-754.96,0.00014118,2]
[357086448,1743703843024,-500.0,0.00014118,2]
[357086449,1743703843035,-500.0,0.00014118,2]
[357086450,1743703843046,-500.0,0.00014118,2]
[357086451,1743703843057,-514.46,0.00014118,2]
[357086452,1743703843067,-500.0,0.00014118,2]
[357086453,1743703843078,-683.28,0.00014118,2]
[357086454,1743703843088,-609.78,0.00014118,2]
[357086455,1743703843099,-1201.59,0.00014118,2]
[357086456,1743703843111,-500.0,0.00014119,2]
[357086457,1743703843122,-500.0,0.00014119,2]
[357086458,1743703843133,-500.0,0.00014119,2]
[357086459,1743703843145,-500.0,0.00014119,2]
[357086460,1743703843155,-989.45,0.00014119,2]
[357086461,1743703843168,-737.38,0.00014119,2]
[357086462,1743703843179,-546.04,0.00014119,2]
[357086463,1743703843190,-500.0,0.00014119,2]
[357086464,1743703843201,-537.0,0.00014119,2]
[357086465,1743703843213,-263.98381754,0.00014293,2]
[357086466,1743703843223,-500.0,0.00014392,2]
[357086467,1743703843234,-500.0,0.00014392,2]
[357086468,1743703843247,-167.19458011,0.00014392,2]
[357086469,1743703843261,-500.0,0.00014392,2]
[357086470,1743703843272,-500.0,0.00014392,2]
[357086471,1743703843283,-500.0,0.00014392,2]
[357086472,1743703843295,-500.0,0.00014392,2]
[357086474,1743703843305,-765.0,0.00014392,2]
[357086475,1743703843316,-1450.48,0.00014392,2]
[357086477,1743703843327,-500.0,0.00014392,2]
[357086479,1743703843338,-500.0,0.00014392,2]
[357086481,1743703843349,-667.54,0.00014392,2]
[357086482,1743703843359,-500.0,0.00014392,2]
[357086483,1743703843370,-500.0,0.00014392,2]
[357086484,1743703843381,-630.4,0.00014392,2]
[357086485,1743703843391,-500.0,0.00014392,2]
[357086486,1743703843401,-815.3,0.00014392,2]
[357086487,1743703843411,-1085.52,0.00014392,2]
[357086488,1743703843422,-500.0,0.00014392,2]
[357086489,1743703843433,-168.53227174,0.00014392,2]
[357086490,1743703843445,-1406.22,0.00014392,2]
[357086491,1743703843455,-500.0,0.00014392,2]
[357086492,1743703843466,-500.0,0.00014392,2]
[357086493,1743703843476,-500.0,0.00014392,2]
[357086494,1743703843490,-2827.2,0.00014392,2]
[357086495,1743703843502,-788.03,0.00014392,2]
[357086496,1743703843514,-500.0,0.00014392,2]
[357086497,1743703843526,-500.0,0.00014392,2]
[357086498,1743703843538,-500.0,0.00014392,2]
[357086499,1743703843549,-500.0,0.00014392,2]
[357086500,1743703843560,-500.0,0.00014392,2]
[357086501,1743703843573,-606.9,0.00014392,2]
[357086502,1743703843584,-500.0,0.00014392,2]
[357086503,1743703843595,-500.0,0.00014392,2]
[357086504,1743703843607,-500.0,0.00014392,2]
[357086505,1743703843618,-500.0,0.00014392,2]
[357086506,1743703843629,-595.01,0.00014392,2]
[357086507,1743703843640,-483.41711941,0.00014392,2]
[357086508,1743703843652,-500.0,0.00014392,2]
[357086509,1743703843664,-754.96,0.00014392,2]
[357086510,1743703843675,-500.0,0.00014392,2]
[357086511,1743703843686,-500.0,0.00014392,2]
[357086512,1743703843697,-500.0,0.00014392,2]
[357086513,1743703843708,-514.46,0.00014392,2]
[357086514,1743703843720,-500.0,0.00014392,2]
[357086515,1743703843731,-683.28,0.00014392,2]
[357086516,1743703843742,-609.78,0.00014392,2]
[357086517,1743703843754,-1201.59,0.00014392,2]
[357086518,1743703843766,-500.0,0.00014393,2]
[357086519,1743703843776,-500.0,0.00014393,2]
[357086520,1743703843788,-500.0,0.00014393,2]
[357086521,1743703843798,-500.0,0.00014393,2]
[357086522,1743703843810,-989.45,0.00014393,2]
[357086523,1743703843822,-737.38,0.00014393,2]
[357086524,1743703843833,-546.04,0.00014393,2]
[357086525,1743703843844,-631.25999204,0.00014393,2]
[357086526,1743703843855,-537.0,0.00014393,2]
[357086527,1743703843867,-1947.3146971,0.00014492,2]
[357086528,1743703843878,-263.98381754,0.00014567,2]
[357086529,1743703843888,-201.606846,0.00014631,2]
[357086530,1743703843899,-500.0,0.00014666,2]
[357086531,1743703843909,-500.0,0.00014666,2]
[357086532,1743703843920,-500.0,0.00014666,2]
[357086533,1743703843930,-500.0,0.00014666,2]
[357086534,1743703843940,-500.0,0.00014666,2]
[357086535,1743703843950,-500.0,0.00014666,2]
[357086536,1743703843961,-765.0,0.00014666,2]
[357086537,1743703843970,-1450.48,0.00014666,2]
[357086538,1743703843980,-570.7441679,0.00014666,2]
[357086539,1743703843990,-500.0,0.00014666,2]
[357086540,1743703844000,-667.54,0.00014666,2]
[357086541,1743703844010,-500.0,0.00014666,2]
[357086542,1743703844019,-500.0,0.00014666,2]
[357086543,1743703844029,-630.4,0.00014666,2]
[357086544,1743703844038,-500.0,0.00014666,2]
[357086545,1743703844259,-815.3,0.00014666,2]
[357086546,1743703844273,-151.0,0.00014666,2]
[357086547,1743703844283,-1085.52,0.00014666,2]
[357086548,1743703844292,-500.0,0.00014666,2]
[357086549,1743703844303,-1406.22,0.00014666,2]
[357086550,1743703844313,-151.0,0.00014666,2]
[357086551,1743703844325,-500.0,0.00014666,2]
[357086552,1743703844335,-500.0,0.00014666,2]
[357086553,1743703844344,-500.0,0.00014666,2]
[357086554,1743703844354,-2827.2,0.00014666,2]
[357086555,1743703844363,-788.03,0.00014666,2]
[357086556,1743703844373,-500.0,0.00014666,2]
[357086557,1743703844382,-500.0,0.00014666,2]
[357086558,1743703844392,-500.0,0.00014666,2]
[357086559,1743703844402,-500.0,0.00014666,2]
[357086560,1743703844411,-500.0,0.00014666,2]
[357086561,1743703844420,-606.9,0.00014666,2]
[357086562,1743703844430,-500.0,0.00014666,2]
[357086563,1743703844439,-500.0,0.00014666,2]
[357086564,1743703844449,-500.0,0.00014666,2]
[357086565,1743703844459,-500.0,0.00014666,2]
[357086566,1743703844468,-921.285062,0.00014666,2]
[357086567,1743703844477,-921.285062,0.00014666,2]
[357086568,1743703844487,-595.01,0.00014666,2]
[357086569,1743703844496,-500.0,0.00014666,2]
[357086570,1743703844505,-754.96,0.00014666,2]
[357086571,1743703844515,-500.0,0.00014666,2]
[357086572,1743703844524,-151.0,0.00014666,2]
[357086573,1743703844533,-500.0,0.00014666,2]
[357086574,1743703844543,-500.0,0.00014666,2]
[357086575,1743703844552,-151.0,0.00014666,2]
[357086576,1743703844561,-151.0,0.00014666,2]
[357086577,1743703844571,-151.0,0.00014666,2]
[357086578,1743703844580,-514.46,0.00014666,2]
[357086579,1743703844590,-455.61501519,0.00014666,2]
[357086580,1743703844599,-683.28,0.00014666,2]
[357086581,1743703844609,-151.0,0.00014666,2]
[357086582,1743703844618,-151.0,0.00014666,2]
[357086583,1743703844627,-151.0,0.00014666,2]
[357086584,1743703844637,-609.78,0.00014666,2]
[357086585,1743703844646,-151.0,0.00014666,2]
[357086586,1743703844656,-1201.59,0.00014666,2]
[357086587,1743703844667,-500.0,0.00014667,2]
[357086588,1743703844676,-151.0,0.00014667,2]
[357086589,1743703844686,-151.0,0.00014667,2]
[357086590,1743703844696,-500.0,0.00014667,2]
[357086591,1743703844705,-500.0,0.00014667,2]
[357086592,1743703844715,-151.0,0.00014667,2]
[357086593,1743703844725,-500.0,0.00014667,2]
[357086594,1743703844734,-989.45,0.00014667,2]
[357086595,1743703844743,-151.0,0.00014667,2]
[357086596,1743703844753,-737.38,0.00014667,2]
[357086597,1743703844762,-546.04,0.00014667,2]
[357086598,1743703844771,-151.0,0.00014667,2]
[357086599,1743703844781,-151.0,0.00014667,2]
[357086600,1743703844790,-537.0,0.00014667,2]
[357086601,1743703844799,-151.0,0.00014667,2]
[357086602,1743703844809,-151.0,0.00014667,2]
[357086603,1743703844818,-307.739008,0.00014667,2]
[357086604,1743703844827,-307.739008,0.00014667,2]
[357086605,1743703844836,-447.763264,0.00014667,2]
[357086606,1743703844846,-447.763264,0.00014667,2]
[357086607,1743703844856,-178.946043,0.00014667,2]
[357086608,1743703844865,-151.0,0.00014667,2]
[357086609,1743703844875,-161.324973,0.00014667,2]
[357086610,1743703844885,-161.324973,0.00014667,2]
[357086611,1743703844894,-151.0,0.00014667,2]
[357086612,1743703844903,-151.0,0.00014667,2]
[357086613,1743703844914,-158.44456,0.00014667,2]
[357086614,1743703844923,-158.44456,0.00014667,2]
[357086615,1743703844933,-263.98381754,0.00014841,2]
[357086616,1743703844943,-500.0,0.00014939,2]
[357086617,1743703844952,-392.9624609,0.00014939,2]
[357086618,1743703844962,-500.0,0.0001494,2]
[357086619,1743703844972,-500.0,0.0001494,2]
[357086620,1743703844982,-500.0,0.0001494,2]
[357086621,1743703844992,-500.0,0.0001494,2]
[357086622,1743703845002,-151.0,0.0001494,2]
[357086623,1743703845012,-151.0,0.0001494,2]
[357086624,1743703845021,-500.0,0.0001494,2]
[357086625,1743703845031,-307.739008,0.0001494,2]
[357086626,1743703845041,-307.739008,0.0001494,2]
[357086627,1743703845051,-447.763264,0.0001494,2]
[357086628,1743703845060,-447.763264,0.0001494,2]
[357086629,1743703845070,-500.0,0.0001494,2]
[357086630,1743703845079,-161.324973,0.0001494,2]
[357086631,1743703845089,-161.324973,0.0001494,2]
[357086632,1743703845098,-151.0,0.0001494,2]
[357086633,1743703845108,-765.0,0.0001494,2]
[357086634,1743703845117,-1450.48,0.0001494,2]
[357086635,1743703845126,-500.0,0.0001494,2]
[357086636,1743703845136,-158.44456,0.0001494,2]
[357086637,1743703845146,-158.44456,0.0001494,2]
[357086638,1743703845156,-667.54,0.0001494,2]
[357086639,1743703845167,-500.0,0.0001494,2]
[357086640,1743703845177,-500.0,0.0001494,2]
[357086641,1743703845187,-630.4,0.0001494,2]
[357086642,1743703845198,-500.0,0.0001494,2]
[357086644,1743703845216,-815.3,0.0001494,2]
[357086645,1743703845229,-151.0,0.0001494,2]
[357086646,1743703845241,-151.0,0.0001494,2]
[357086647,1743703845254,-1085.52,0.0001494,2]
[357086648,1743703845264,-500.0,0.0001494,2]
[357086649,1743703845274,-1406.22,0.0001494,2]
[357086650,1743703845286,-243.170356,0.0001494,2]
[357086651,1743703845296,-500.0,0.0001494,2]
[357086652,1743703845306,-467.49245237,0.0001494,2]
[357086653,1743703845316,-500.0,0.0001494,2]
[357086654,1743703845326,-2827.2,0.0001494,2]
[357086655,1743703845336,-788.03,0.0001494,2]
[357086656,1743703845346,-500.0,0.0001494,2]
[357086657,1743703845356,-500.0,0.0001494,2]
[357086658,1743703845366,-500.0,0.0001494,2]
[357086659,1743703845376,-500.0,0.0001494,2]
[357086660,1743703845385,-500.0,0.0001494,2]
[357086661,1743703845396,-606.9,0.0001494,2]
[357086662,1743703845407,-500.0,0.0001494,2]
[357086663,1743703845419,-500.0,0.0001494,2]
[357086664,1743703845429,-500.0,0.0001494,2]
[357086665,1743703845439,-500.0,0.0001494,2]
[357086666,1743703845449,-921.285062,0.0001494,2]
[357086667,1743703845459,-921.285062,0.0001494,2]
[357086668,1743703845469,-921.285062,0.0001494,2]
[357086670,1743703845479,-921.285062,0.0001494,2]
[357086671,1743703845488,-595.01,0.0001494,2]
[357086673,1743703845499,-500.0,0.0001494,2]
[357086674,1743703845509,-754.96,0.0001494,2]
[357086675,1743703845519,-500.0,0.0001494,2]
[357086676,1743703845529,-151.0,0.0001494,2]
[357086677,1743703845540,-151.0,0.0001494,2]
[357086678,1743703845550,-500.0,0.0001494,2]
[357086679,1743703845560,-507.37495641,0.0001494,2]
[357086680,1743703845570,-151.0,0.0001494,2]
[357086681,1743703845580,-151.0,0.0001494,2]
[357086682,1743703845589,-151.0,0.0001494,2]
[357086683,1743703845599,-151.0,0.0001494,2]
[357086684,1743703845609,-151.0,0.0001494,2]
[357086685,1743703845619,-514.46,0.0001494,2]
[357086686,1743703845629,-683.28,0.0001494,2]
[357086687,1743703845639,-151.0,0.0001494,2]
[357086688,1743703845648,-151.0,0.0001494,2]
[357086689,1743703845659,-151.0,0.0001494,2]
[357086690,1743703845670,-609.78,0.0001494,2]
[357086691,1743703845679,-151.0,0.0001494,2]
[357086692,1743703845689,-151.0,0.0001494,2]
[357086693,1743703845699,-151.0,0.0001494,2]
[357086694,1743703845709,-1201.59,0.0001494,2]
[357086695,1743703845720,-548.90867575,0.00014941,2]
[357086696,1743703845729,-151.0,0.00014941,2]
[357086697,1743703845739,-500.0,0.00014941,2]
[357086699,1743703845749,-500.0,0.00014941,2]
[357086701,1743703845759,-151.0,0.00014941,2]
[357086702,1743703845769,-500.0,0.00014941,2]
[357086703,1743703845778,-989.45,0.00014941,2]
[357086704,1743703845788,-151.0,0.00014941,2]
[357086706,1743703845798,-737.38,0.00014941,2]
[357086707,1743703845808,-546.04,0.00014941,2]
[357086708,1743703845817,-151.0,0.00014941,2]
[357086709,1743703845827,-151.0,0.00014941,2]
[357086710,1743703845837,-537.0,0.00014941,2]
[357086711,1743703845847,-307.739008,0.00014941,2]
[357086712,1743703845857,-307.739008,0.00014941,2]
[357086713,1743703845867,-447.763264,0.00014941,2]
[357086714,1743703845877,-447.763264,0.00014941,2]
[357086715,1743703845887,-161.324973,0.00014941,2]
[357086716,1743703845896,-161.324973,0.00014941,2]
[357086717,1743703845906,-158.44456,0.00014941,2]
[357086718,1743703845916,-158.44456,0.00014941,2]
[357086719,1743703845926,-151.0,0.00014942,2]
[357086720,1743703845935,-263.98381754,0.00015114,2]
[357086721,1743703845945,-500.0,0.00015214,2]
[357086722,1743703845955,-500.0,0.00015214,2]
[357086723,1743703845964,-500.0,0.00015214,2]
[357086725,1743703845974,-500.0,0.00015214,2]
[357086727,1743703845984,-151.0,0.00015214,2]
[357086729,1743703845993,-151.0,0.00015214,2]
[357086731,1743703846003,-500.0,0.00015214,2]
[357086733,1743703846013,-307.739008,0.00015214,2]
[357086735,1743703846022,-307.739008,0.00015214,2]
[357086737,1743703846032,-447.763264,0.00015214,2]
[357086738,1743703846041,-447.763264,0.00015214,2]
[357086739,1743703846050,-500.0,0.00015214,2]
[357086740,1743703846060,-161.324973,0.00015214,2]
[357086741,1743703846069,-161.324973,0.00015214,2]
[357086742,1743703846079,-765.0,0.00015214,2]
[357086743,1743703846088,-1450.48,0.00015214,2]
[357086744,1743703846097,-500.0,0.00015214,2]
[357086745,1743703846107,-158.44456,0.00015214,2]
[357086746,1743703846116,-158.44456,0.00015214,2]
[357086747,1743703846125,-667.54,0.00015214,2]
[357086748,1743703846134,-500.0,0.00015214,2]
[357086749,1743703846143,-500.0,0.00015214,2]
[357086750,1743703846153,-630.4,0.00015214,2]
[357086751,1743703846163,-500.0,0.00015214,2]
[357086752,1743703846173,-815.3,0.00015214,2]
[357086753,1743703846182,-151.0,0.00015214,2]
[357086754,1743703846191,-151.0,0.00015214,2]
[357086755,1743703846201,-1085.52,0.00015214,2]
[357086756,1743703846211,-500.0,0.00015214,2]
[357086757,1743703846220,-1406.22,0.00015214,2]
[357086758,1743703846230,-500.0,0.00015214,2]
[357086759,1743703846245,-500.0,0.00015214,2]
[357086760,1743703846255,-2827.2,0.00015214,2]
[357086761,1743703846266,-153.72578329,0.00015214,2]
[357086762,1743703846441,-634.30421671,0.00015214,2]
[357086763,1743703846451,-500.0,0.00015214,2]
[357086764,1743703846461,-500.0,0.00015214,2]
[357086765,1743703846471,-500.0,0.00015214,2]
[357086766,1743703846480,-500.0,0.00015214,2]
[357086767,1743703846489,-500.0,0.00015214,2]
[357086768,1743703846499,-606.9,0.00015214,2]
[357086769,1743703846508,-500.0,0.00015214,2]
[357086770,1743703846518,-500.0,0.00015214,2]
[357086771,1743703846527,-500.0,0.00015214,2]
[357086772,1743703846537,-500.0,0.00015214,2]
[357086773,1743703846547,-921.285062,0.00015214,2]
[357086774,1743703846556,-921.285062,0.00015214,2]
[357086775,1743703846565,-595.01,0.00015214,2]
[357086776,1743703846575,-500.0,0.00015214,2]
[357086777,1743703846584,-644.75927161,0.00015214,2]
[357086778,1743703846837,-151.0,0.00014666,2]
[357086779,1743703846847,-151.0,0.0001494,2]
[357086780,1743703846856,-151.0,0.0001494,2]
[357086781,1743703846866,-110.20072839,0.00015214,2]
[357086782,1743703846876,-500.0,0.00015214,2]
[357086783,1743703846885,-151.0,0.00015214,2]
[357086784,1743703846895,-500.0,0.00015214,2]
[357086785,1743703846905,-151.0,0.00015214,2]
[357086786,1743703846914,-151.0,0.00015214,2]
[357086787,1743703846924,-514.46,0.00015214,2]
[357086788,1743703846933,-683.28,0.00015214,2]
[357086789,1743703846943,-21.04072993,0.00015214,2]
[357086790,1743703846954,-129.95927007,0.00015214,2]
[357086791,1743703846964,-609.78,0.00015214,2]
[357086792,1743703846974,-151.0,0.00015214,2]
[357086793,1743703846983,-346.69122545,0.00015214,2]
[357086803,1743703934287,194.22,0.00010959,2]
[357086804,1743703945318,161.85,0.00010959,2]
[357086805,1743703955880,809.27,0.00010959,2]
[357086806,1743703966455,156.11,0.00010959,2]
[357086808,1743704128488,15693.85654535,0.00013255,2]
[357086908,1743705032104,-167.6853029,0.00013221,2]
[357086909,1743705032114,-9206.14345465,0.00013255,2]
[357086910,1743705032124,-1602.39035719,0.00014016,2]
[357086911,1743705032133,-295.25780128,0.00014018,2]
[357086912,1743705032143,-300.0,0.00014108,2]
[357086913,1743705032152,-597.67,0.00014114,2]
[357086914,1743705032162,-986.88,0.00014114,2]
[357086915,1743705032171,-500.0,0.00014115,2]
[357086916,1743705032181,-1465.98,0.00014115,2]
[357086917,1743705032191,-500.0,0.00014115,2]
[357086918,1743705032200,-394.08045183,0.00014115,2]
[357086919,1743705032209,-500.0,0.00014115,2]
[357086920,1743705032218,-500.0,0.00014115,2]
[357086921,1743705032227,-500.0,0.00014115,2]
[357086922,1743705032236,-1113.25,0.00014115,2]
[357086923,1743705032244,-313.24645679,0.00014115,2]
[357086924,1743705032254,-500.0,0.00014115,2]
[357086925,1743705032263,-500.0,0.00014115,2]
[357086926,1743705032274,-500.0,0.00014115,2]
[357086927,1743705032284,-500.0,0.00014115,2]
[357086928,1743705032293,-500.0,0.00014115,2]
[357086929,1743705032303,-500.0,0.00014115,2]
[357086930,1743705032312,-500.0,0.00014115,2]
[357086931,1743705032321,-159.13861614,0.00014115,2]
[357086932,1743705032331,-273.12202375,0.00014115,2]
[357086933,1743705032340,-500.0,0.00014115,2]
[357086934,1743705032350,-540.93,0.00014115,2]
[357086935,1743705032359,-500.0,0.00014116,2]
[357086936,1743705032369,-500.0,0.00014116,2]
[357086937,1743705032379,-500.0,0.00014116,2]
[357086938,1743705032389,-500.0,0.00014116,2]
[357086939,1743705032399,-500.0,0.00014116,2]
[357086940,1743705032408,-500.0,0.00014116,2]
[357086941,1743705032418,-1148.29,0.00014116,2]
[357086942,1743705032429,-500.0,0.00014116,2]
[357086943,1743705032439,-500.0,0.00014116,2]
[357086944,1743705032450,-500.0,0.00014116,2]
[357086945,1743705032459,-500.0,0.00014116,2]
[357086946,1743705032468,-623.85,0.00014116,2]
[357086947,1743705032478,-2642.09,0.00014116,2]